bitfinex/quotes_BTCUSD_20250825
["timestamp","ask_amount","ask_price","bid_price","bid_amount"]
[1756163153675,0.06299546,110320.0,110310.0,0.22876]
[1756163153884,0.22274663,110320.0,110310.0,0.22876]
[1756163154063,0.22279433,110320.0,110310.0,0.22976]
[1756163154277,0.22279433,110320.0,110310.0,0.23176]
[1756163154491,0.22279433,110320.0,110310.0,0.23386]
[1756163155468,0.22279433,110320.0,110310.0,0.23707]
[1756163155671,0.22477433,110320.0,110310.0,0.23707]
[1756163155883,0.22279433,110320.0,110310.0,0.30795058]
[1756163156080,0.22279433,110320.0,110310.0,0.23707]
[1756163157604,0.22477433,110320.0,110310.0,0.23176]
[1756163157744,0.22279433,110320.0,110310.0,0.23706]
[1756163158191,0.22477433,110320.0,110310.0,0.23706]
[1756163158391,0.22477433,110320.0,110310.0,0.23176]
[1756163158538,0.29745257,110320.0,110310.0,0.23176]
[1756163158947,0.22477433,110320.0,110310.0,0.23385]
[1756163159155,0.22279433,110320.0,110310.0,0.23706]
[1756163159601,0.22478433,110320.0,110310.0,0.23706]
[1756163160706,0.22279433,110320.0,110310.0,0.23706]
[1756163161323,0.01423454,110320.0,110310.0,0.49089997]
[1756163161538,0.52133849,110320.0,110310.0,0.30959275]
[1756163161915,0.52133849,110320.0,110310.0,0.23706]
[1756163162517,0.52133849,110320.0,110310.0,0.41836722]
[1756163163554,0.52133849,110320.0,110310.0,0.23706]
[1756163165639,0.52133849,110320.0,110310.0,0.41836722]
[1756163165865,0.3400477,110320.0,110310.0,0.50012425]
[1756163166066,0.3673157,110320.0,110310.0,0.50012425]
[1756163166858,0.3400477,110320.0,110310.0,0.50012425]
[1756163167239,0.3400477,110320.0,110310.0,0.41836722]
[1756163168569,0.0142327,110320.0,110310.0,0.41836722]
[1756163169582,0.0142327,110320.0,110310.0,0.43581624]
[1756163169787,0.0142327,110320.0,110310.0,0.52270099]
[1756163169988,0.0142327,110320.0,110310.0,0.54996099]
[1756163170423,0.0142327,110320.0,110310.0,0.63683064]
[1756163173745,0.0142327,110320.0,110310.0,1.24628823]
[1756163174171,0.0142327,110320.0,110310.0,1.64628823]
[1756163174394,4.77e-05,110320.0,110310.0,1.64628823]
[1756163174565,4.77e-05,110320.0,110310.0,1.91498823]
[1756163174768,4.77e-05,110320.0,110310.0,1.55453064]
[1756163175009,4.77e-05,110320.0,110310.0,1.55653064]
[1756163175228,4.77e-05,110320.0,110310.0,1.55453064]
[1756163175569,4.77e-05,110320.0,110310.0,1.55853064]
[1756163176357,4.77e-05,110320.0,110310.0,1.39949064]
[1756163176561,4.77e-05,110320.0,110310.0,1.55849064]
[1756163176951,4.77e-05,110320.0,110310.0,1.15849064]
[1756163177360,4.77e-05,110320.0,110310.0,1.55849064]
[1756163177572,4.77e-05,110320.0,110310.0,1.59973393]
[1756163178001,4.77e-05,110320.0,110310.0,1.19973393]
[1756163178844,4.77e-05,110320.0,110310.0,0.94073393]
[1756163179054,4.77e-05,110320.0,110310.0,1.19973393]
[1756163180085,4.77e-05,110320.0,110310.0,0.94973393]
[1756163180305,4.77e-05,110320.0,110310.0,1.09973393]
[1756163180918,4.77e-05,110320.0,110310.0,0.83103393]
[1756163181658,4.77e-05,110320.0,110310.0,0.83099393]
[1756163182083,4.77e-05,110320.0,110310.0,0.67203393]
[1756163182311,4.77e-05,110320.0,110310.0,0.68099393]
[1756163182731,4.77e-05,110320.0,110310.0,0.83099393]
[1756163182938,4.77e-05,110320.0,110310.0,0.68099393]
[1756163183510,0.0020277,110320.0,110310.0,0.50815687]
[1756163183729,0.0020277,110320.0,110310.0,0.41598722]
[1756163184382,4.77e-05,110320.0,110310.0,0.42128722]
[1756163185949,0.0020277,110320.0,110310.0,0.25702722]
[1756163186156,0.0020277,110320.0,110310.0,0.41598722]
[1756163186406,0.0020277,110320.0,110310.0,0.41804722]
[1756163186621,4.77e-05,110320.0,110310.0,0.50810687]
[1756163186977,0.01423072,110320.0,110310.0,0.50810687]
[1756163187185,0.01622072,110320.0,110310.0,0.50810687]
[1756163188010,0.01423072,110320.0,110310.0,0.50810687]
[1756163188662,0.01622072,110320.0,110310.0,0.50810687]
[1756163189650,0.01875072,110320.0,110310.0,0.41598722]
[1756163189823,0.35875072,110320.0,110310.0,0.41598722]
[1756163190227,0.35622072,110320.0,110310.0,0.41598722]
[1756163193968,0.35423072,110320.0,110310.0,0.42123722]
[1756163194173,0.35423072,110320.0,110310.0,0.50328125]
[1756163194791,0.35633072,110320.0,110310.0,0.49803125]
[1756163196444,0.35633072,110320.0,110310.0,0.50009125]
[1756163196655,0.35633072,110320.0,110310.0,0.50328125]
[1756163198077,0.35633072,110320.0,110310.0,0.41598722]
[1756163198256,0.53808151,110320.0,110310.0,0.07572]
[1756163198467,0.52389849,110320.0,110310.0,0.23464]
[1756163198870,0.18385079,110320.0,110310.0,0.23464]
[1756163199188,0.18385079,110320.0,110310.0,0.23264]
[1756163199364,0.18385079,110320.0,110310.0,0.22864]
[1756163199704,0.18485079,110320.0,110310.0,0.2196]
[1756163199908,0.22409018,110320.0,110310.0,0.06068]
[1756163200071,0.22409018,110320.0,110310.0,0.2196]
[1756163200267,0.25136018,110320.0,110310.0,0.2196]
[1756163200877,0.55212079,110320.0,110310.0,0.2196]
[1756163201776,0.56630616,110320.0,110310.0,0.2196]
[1756163202517,0.55212079,110320.0,110310.0,0.2196]
[1756163203659,0.55212079,110320.0,110310.0,0.06068]
[1756163203872,0.55212079,110320.0,110310.0,0.2196]
[1756163206006,0.63964589,110320.0,110310.0,0.2196]
[1756163206417,0.56630629,110320.0,110310.0,0.2196]
[1756163206623,0.56584629,110320.0,110310.0,0.2196]
[1756163207101,0.56374629,110320.0,110310.0,0.40615722]
[1756163207338,0.56572629,110320.0,110310.0,0.40615722]
[1756163207574,0.56572629,110320.0,110310.0,0.40090722]
[1756163208063,0.56572629,110320.0,110310.0,0.40615722]
[1756163211457,0.56374629,110320.0,110310.0,0.40615722]
[1756163211791,0.56572629,110320.0,110310.0,0.40296722]
[1756163212000,0.56572629,110320.0,110310.0,0.40615722]
[1756163213182,0.56472629,110320.0,110310.0,0.40615722]
[1756163213579,0.56472629,110320.0,110310.0,0.40715722]
[1756163214330,0.56274629,110320.0,110310.0,0.40715722]
[1756163214932,0.3814555,110320.0,110310.0,0.4877933]
[1756163215151,0.3541855,110320.0,110310.0,0.4877933]
[1756163216192,0.3541855,110320.0,110310.0,0.40715722]
[1756163217070,0.53547629,110320.0,110310.0,0.40715722]
[1756163217266,0.53547629,110320.0,110310.0,0.06374]
[1756163217483,0.53803629,110320.0,110310.0,0.22052]
[1756163217721,0.61269424,110320.0,110310.0,0.22052]
[1756163218322,0.61216424,110320.0,110310.0,0.22052]
[1756163218659,0.53850629,110320.0,110310.0,0.22052]
[1756163218819,0.53903629,110320.0,110310.0,0.06168]
[1756163219020,0.53803629,110320.0,110310.0,0.22048]
[1756163219234,0.56530529,110320.0,110310.0,0.22048]
[1756163220053,0.22530529,110320.0,110310.0,0.21948]
[1756163220461,0.22477529,110320.0,110310.0,0.21948]
[1756163220666,0.22274529,110320.0,110310.0,0.4679464]
[1756163221091,0.22572529,110320.0,110310.0,0.40577722]
[1756163221293,0.22572529,110320.0,110310.0,0.21948]
[1756163223420,0.56826529,110320.0,110310.0,0.06068]
[1756163223629,0.56826529,110320.0,110310.0,0.21948]
[1756163224216,0.64321934,110320.0,110310.0,0.21948]
[1756163224613,0.64321934,110320.0,110310.0,0.06068]
[1756163224886,0.64321934,110320.0,110310.0,0.21948]
[1756163225077,0.56374529,110320.0,110310.0,0.22447]
[1756163225822,0.56374529,110320.0,110310.0,0.40577722]
[1756163227084,0.56374529,110320.0,110310.0,0.22447]
[1756163227311,0.56374529,110320.0,110310.0,0.06567]
[1756163227499,0.56572529,110320.0,110310.0,0.21944]
[1756163228091,0.3844345,110320.0,110310.0,0.21944]
[1756163228309,0.3824545,110320.0,110310.0,0.22443]
[1756163228903,0.3824545,110320.0,110310.0,0.40573722]
[1756163229075,0.3551855,110320.0,110310.0,0.40573722]
[1756163229273,0.0151855,110320.0,110310.0,0.40573722]
[1756163229495,0.527266,110330.0,110320.0,0.18129079]
[1756163229716,0.5,110330.0,110320.0,0.18675877]
[1756163229941,5.382291,110330.0,110320.0,0.18675877]
[1756163230157,0.34,110330.0,110320.0,0.18675877]
[1756163231513,0.34,110330.0,110320.0,0.18775877]
[1756163231736,0.34,110330.0,110320.0,0.34647877]
[1756163231944,0.57906508,110330.0,110320.0,0.16019798]
[1756163232156,0.52330435,110330.0,110320.0,0.16019798]
[1756163232379,5.06612535,110330.0,110320.0,0.00147798]
[1756163232587,5.06612535,110330.0,110320.0,0.16019798]
[1756163232800,5.08308671,110330.0,110320.0,0.16019798]
[1756163233015,5.08308671,110330.0,110320.0,0.00147798]
[1756163233229,5.16995636,110330.0,110320.0,0.16019798]
[1756163233413,5.16995636,110330.0,110320.0,0.00147798]
[1756163233689,5.20041296,110330.0,110320.0,0.00147798]
[1756163233910,5.39142292,110330.0,110320.0,0.00047798]
[1756163234136,5.39142292,110330.0,110290.0,0.06972]
[1756163234137,0.18132366,110300.0,110290.0,0.06972]
[1756163234354,0.52137299,110270.0,110260.0,0.00321]
[1756163234604,0.52137299,110270.0,110260.0,0.41516289]
[1756163234822,0.34,110270.0,110260.0,0.41516289]
[1756163235036,0.34,110270.0,110260.0,0.49751198]
[1756163235453,0.35419095,110270.0,110260.0,0.49751198]
[1756163236431,0.35419095,110270.0,110260.0,0.49851198]
[1756163236638,0.01419095,110270.0,110260.0,0.49851198]
[1756163236841,0.01419095,110270.0,110260.0,0.50151198]
[1756163237747,0.01419095,110270.0,110260.0,0.41916289]
[1756163238326,0.367273,110300.0,110290.0,0.1813401]
[1756163238573,4.909564,110300.0,110290.0,0.4148101]
[1756163239180,0.01419024,110310.0,110300.0,0.18132366]
[1756163239380,4.55846124,110310.0,110300.0,0.24291704]
[1756163239589,4.58573324,110310.0,110300.0,0.18631366]
[1756163239789,4.76704046,110310.0,110290.0,0.4138301]
[1756163240001,4.542291,110300.0,110290.0,0.4138301]
[1756163240203,4.882291,110300.0,110290.0,0.4158101]
[1756163240398,0.34,110300.0,110290.0,0.41595355]
[1756163241032,0.34,110300.0,110290.0,0.43206023]
[1756163241375,0.34,110300.0,110290.0,0.41595355]
[1756163241586,0.341,110300.0,110290.0,0.41495355]
[1756163242209,0.341,110300.0,110290.0,0.25623355]
[1756163242415,0.341,110300.0,110290.0,0.41495355]
[1756163242819,0.341,110300.0,110290.0,0.41595355]
[1756163246679,0.52232366,110300.0,110290.0,0.25723355]
[1756163246880,0.52232366,110300.0,110290.0,0.41595355]
[1756163247077,0.52431366,110300.0,110290.0,0.22962345]
[1756163247492,0.53850219,110300.0,110290.0,0.22962345]
[1756163247715,0.53850219,110300.0,110290.0,0.23172345]
[1756163247911,0.53850219,110300.0,110290.0,0.23496345]
[1756163248925,0.53651219,110300.0,110290.0,0.23496345]
[1756163249889,0.53849219,110300.0,110290.0,0.23496345]
[1756163250107,0.53651219,110300.0,110290.0,0.41630355]
[1756163250312,0.53849219,110300.0,110290.0,0.07090345]
[1756163250515,0.53849219,110300.0,110290.0,0.22962345]
[1756163251339,0.56576619,110300.0,110290.0,0.22962345]
[1756163252935,0.56576619,110300.0,110290.0,0.23172345]
[1756163253317,0.56378619,110300.0,110290.0,0.41630355]
[1756163253589,0.35518853,110300.0,110290.0,0.41630355]
[1756163253813,0.341,110300.0,110290.0,0.41630355]
[1756163254463,0.341,110300.0,110290.0,0.47606951]
[1756163254669,0.001,110300.0,110290.0,0.47606951]
[1756163255093,0.001,110300.0,110290.0,0.41630355]
[1756163257209,0.001,110300.0,110290.0,0.41530355]
[1756163257433,0.54854165,110330.0,110320.0,0.18129079]
[1756163257661,4.92847083,110330.0,110320.0,0.41183079]
[1756163257870,4.58649083,110330.0,110320.0,0.41507079]
[1756163258083,0.01693283,110330.0,110320.0,0.47470718]
[1756163258292,0.37111816,110330.0,110320.0,0.47470718]
[1756163258714,0.37111853,110330.0,110320.0,0.41507079]
[1756163258940,0.37410858,110330.0,110320.0,0.41183079]
[1756163259160,0.37211858,110330.0,110320.0,0.41507079]
[1756163259371,0.35518533,110330.0,110320.0,0.41507079]
[1756163260036,0.01518533,110330.0,110320.0,0.41507079]
[1756163260254,0.002,110330.0,110320.0,0.47470718]
[1756163261174,0.36329765,110350.0,110340.0,0.18125793]
[1756163261456,4.93297464,110350.0,110340.0,0.33993793]
[1756163262600,5.20462579,110350.0,110340.0,0.15864]
[1756163262832,5.20462579,110350.0,110340.0,0.33989793]
[1756163263261,4.93397464,110350.0,110340.0,0.33989793]
[1756163263491,4.93797464,110350.0,110340.0,0.33989793]
[1756163264133,4.93797464,110350.0,110340.0,0.33085793]
[1756163264371,5.12175614,110350.0,110340.0,0.33085793]
[1756163264584,4.93797464,110350.0,110340.0,0.33085793]
[1756163264810,4.94051464,110350.0,110340.0,0.33085793]
[1756163265265,4.93797464,110350.0,110340.0,0.33085793]
[1756163266561,0.18125793,110340.0,110330.0,0.18127285]
[1756163266765,4.72553893,110340.0,110330.0,0.3400563]
[1756163267010,0.52324793,110340.0,110330.0,0.3400563]
[1756163267224,0.52578793,110340.0,110330.0,0.3400563]
[1756163267667,0.53743099,110340.0,110330.0,0.3400563]
[1756163267893,0.35617306,110340.0,110330.0,0.3400563]
[1756163268347,0.35717306,110340.0,110330.0,0.3400163]
[1756163269093,0.35518306,110340.0,110330.0,0.40569346]
[1756163269931,0.35518306,110340.0,110330.0,0.3453563]
[1756163270761,0.35418306,110340.0,110330.0,0.3453563]
[1756163271356,0.35418306,110340.0,110330.0,0.3463563]
[1756163274378,0.01418306,110340.0,110330.0,0.3463563]
[1756163275009,0.01418306,110340.0,110330.0,0.1877563]
[1756163275212,0.03605556,110340.0,110330.0,0.1877563]
[1756163275440,0.01418306,110340.0,110330.0,0.3463163]
[1756163279452,0.00048306,110340.0,110330.0,0.3463163]
[1756163279701,0.02329765,110350.0,110340.0,0.18125793]
[1756163279866,0.00196,110350.0,110340.0,0.18330793]
[1756163280290,0.00196,110350.0,110340.0,0.18651793]
[1756163280529,0.02246555,110350.0,110340.0,0.18651793]
[1756163280733,0.5232015,110350.0,110340.0,0.33981793]
[1756163281151,0.5242015,110350.0,110340.0,0.33981793]
[1756163281767,0.34296,110350.0,110340.0,0.34186793]
[1756163281974,0.341,110350.0,110340.0,0.34507793]
[1756163282259,0.35793248,110350.0,110340.0,0.34507793]
[1756163282522,0.35793248,110350.0,110340.0,0.18651793]
[1756163282720,0.35793248,110350.0,110340.0,0.34507793]
[1756163282920,0.341,110350.0,110340.0,0.34507793]
[1756163283094,0.34296,110350.0,110340.0,0.34507793]
[1756163283288,0.35990062,110350.0,110340.0,0.34507793]
[1756163283958,0.35990062,110350.0,110340.0,0.18651793]
[1756163284162,0.54114212,110350.0,110340.0,0.18651793]
[1756163284468,0.57309904,110350.0,110330.0,0.1814178]
[1756163284689,0.57309904,110350.0,110340.0,0.15856]
[1756163284920,0.18125793,110340.0,110330.0,0.1846278]
[1756163285144,0.54318508,110350.0,110330.0,0.3420278]
[1756163285355,0.56861041,110350.0,110330.0,0.3452378]
[1756163285582,0.57396727,110350.0,110330.0,0.3452378]
[1756163285729,0.18321793,110340.0,110330.0,0.1834678]
[1756163285922,0.00196,110340.0,110330.0,0.3419878]
[1756163286126,0.00196,110340.0,110330.0,0.3451978]
[1756163286352,0.01418261,110340.0,110330.0,0.3451978]
[1756163286808,0.01614261,110340.0,110330.0,0.3451978]
[1756163287032,0.01614261,110340.0,110330.0,0.3399378]
[1756163287232,0.01614261,110340.0,110330.0,0.3419878]
[1756163287437,0.01614261,110340.0,110330.0,0.3461978]
[1756163288140,0.01418261,110340.0,110330.0,0.3461978]
[1756163288305,0.03114312,110340.0,110330.0,0.3461978]
[1756163289856,0.37118312,110340.0,110330.0,0.1824178]
[1756163290057,0.60977387,110340.0,110330.0,0.3409378]
[1756163290252,0.61825532,110340.0,110330.0,0.3409378]
[1756163290791,0.61825532,110340.0,110330.0,0.3399378]
[1756163291269,0.62177532,110340.0,110330.0,0.00014345]
[1756163291622,0.5644425,110340.0,110330.0,0.15866345]
[1756163291766,0.57080325,110340.0,110330.0,0.15866345]
[1756163291984,0.59806825,110340.0,110330.0,0.15866345]
[1756163292385,0.59806706,110340.0,110330.0,0.15866345]
[1756163292594,0.58388445,110340.0,110330.0,0.15866345]
[1756163292793,5.2047824,110340.0,110330.0,0.00014345]
[1756163292996,5.2047824,110340.0,110330.0,0.15866345]
[1756163295537,5.19842284,110340.0,110330.0,0.15866345]
[1756163295800,5.20476062,110340.0,110330.0,0.15866345]
[1756163296009,5.2189452,110340.0,110330.0,0.15866345]
[1756163296415,5.2384656,110340.0,110330.0,0.15866345]
[1756163297380,5.26853961,110340.0,110330.0,0.15862345]
[1756163297614,5.26753961,110340.0,110330.0,0.15862345]
[1756163297823,5.26753961,110340.0,110330.0,0.00014345]
[1756163297824,5.44346863,110340.0,110330.0,0.00014345]
[1756163298028,5.43463193,110340.0,110330.0,0.00014345]
[1756163298231,5.44945553,110340.0,110330.0,0.00014345]
[1756163298428,5.44545553,110340.0,110330.0,0.00014345]
[1756163298633,5.44945553,110340.0,110330.0,0.00014345]
[1756163299079,5.28696924,110340.0,110330.0,0.00014345]
[1756163299288,5.44344924,110340.0,110330.0,0.00014345]
[1756163299961,5.44444924,110340.0,110330.0,0.00014345]
[1756163300361,5.44344924,110340.0,110330.0,0.00014345]
[1756163300777,5.44544924,110340.0,110330.0,0.00014345]
[1756163301382,5.41537523,110340.0,110330.0,0.00014345]
[1756163302934,5.44544924,110340.0,110330.0,0.00014345]
[1756163303139,5.41537523,110340.0,110330.0,0.00014345]
[1756163305230,5.4069046,110340.0,110330.0,0.00014345]
[1756163305434,5.40114812,110340.0,110330.0,0.00014345]
[1756163305633,5.41533432,110340.0,110330.0,0.00014345]
[1756163309044,5.25685432,110340.0,110330.0,0.00014345]
[1756163309245,5.41533432,110340.0,110330.0,0.00014345]
[1756163309719,5.17572737,110340.0,110330.0,0.00014345]
[1756163309873,5.33674737,110340.0,110330.0,0.00014345]
[1756163310508,5.17826737,110340.0,110330.0,0.00014345]
[1756163310826,5.33674737,110340.0,110330.0,0.00014345]
[1756163311482,5.32256117,110340.0,110330.0,0.00014345]
[1756163311688,5.32256117,110340.0,110300.0,0.06972]
[1756163311689,0.52130722,110310.0,110300.0,0.06972]
[1756163311899,0.52132366,110300.0,110290.0,0.16156]
[1756163312109,0.52132366,110300.0,110290.0,0.1637277]
[1756163312110,5.06361466,110300.0,110290.0,0.1637277]
[1756163312246,5.09089066,110300.0,110290.0,0.1637277]
[1756163312452,5.14885782,110300.0,110290.0,0.1637277]
[1756163312652,5.09287066,110300.0,110290.0,0.1637277]
[1756163313695,5.09089066,110300.0,110290.0,0.1647277]
[1756163313904,5.09287066,110300.0,110290.0,0.1595277]
[1756163314066,5.09287066,110300.0,110290.0,0.1625277]
[1756163314272,5.17974031,110300.0,110290.0,0.1625277]
[1756163314483,5.20981432,110300.0,110290.0,0.1625277]
[1756163314730,5.20981432,110300.0,110290.0,0.0040477]
[1756163314940,5.21235432,110300.0,110290.0,0.0040477]
[1756163315142,5.22925469,110300.0,110290.0,0.0030477]
[1756163315340,5.38773469,110300.0,110290.0,0.0030477]
[1756163315717,5.38772987,110300.0,110290.0,0.0040477]
[1756163316154,5.22924987,110300.0,110290.0,0.0040477]
[1756163316354,5.38772987,110300.0,110290.0,0.0010477]
[1756163317001,5.22924987,110300.0,110290.0,0.0010477]
[1756163317204,5.38772987,110300.0,110290.0,0.0010477]
[1756163317588,0.18135654,110280.0,110270.0,0.14841689]
[1756163317720,4.75991861,110280.0,110270.0,0.15068042]
[1756163318748,4.78719861,110280.0,110270.0,0.15268042]
[1756163318956,4.75092754,110280.0,110270.0,0.15268042]
[1756163319568,4.75092754,110280.0,110270.0,0.15576042]
[1756163319949,4.75306754,110280.0,110270.0,0.15268042]
[1756163320166,5.09627754,110280.0,110270.0,0.15056042]
[1756163320598,5.12635155,110280.0,110270.0,0.15356042]
[1756163320804,5.1542447,110280.0,110270.0,0.15056042]
[1756163321020,5.17112792,110280.0,110270.0,0.15056042]
[1756163321231,5.17112792,110280.0,110270.0,0.15256042]
[1756163321445,5.17112792,110280.0,110270.0,0.14856042]
[1756163321446,5.18532057,110280.0,110270.0,0.14856042]
[1756163321877,5.21539458,110280.0,110270.0,0.14856042]
[1756163322098,5.37709095,110280.0,110270.0,0.00014353]
[1756163322857,5.37809095,110280.0,110270.0,0.00014353]
[1756163323258,5.37809095,110280.0,110260.0,0.0002]
[1756163323259,0.53882201,110270.0,110260.0,0.0002]
[1756163323472,5.34869588,110270.0,110260.0,0.0002]
[1756163323673,5.26182623,110270.0,110260.0,0.0002]
[1756163324311,5.24494301,110270.0,110260.0,0.0002]
[1756163324534,5.26181184,110270.0,110260.0,0.0002]
[1756163324675,5.26281176,110270.0,110260.0,0.0002]
[1756163325072,5.26289176,110270.0,110260.0,0.0002]
[1756163325504,5.10112176,110270.0,110260.0,0.00232]
[1756163325714,5.08153274,110270.0,110260.0,0.0054]
[1756163326038,5.09672518,110270.0,110260.0,0.0054]
[1756163327144,5.09886518,110270.0,110260.0,0.0054]
[1756163327407,5.09672518,110270.0,110260.0,0.0054]
[1756163327882,5.18359483,110270.0,110260.0,0.0054]
[1756163328535,4.75886518,110270.0,110260.0,0.0054]
[1756163329573,4.76207518,110270.0,110260.0,0.0002]
[1756163330523,5.10207518,110270.0,110260.0,0.0002]
[1756163330745,5.29068304,110270.0,110260.0,0.0002]
[1756163330966,5.26079518,110270.0,110260.0,0.0002]
[1756163331384,5.25774518,110270.0,110260.0,0.00232]
[1756163331593,5.26095518,110270.0,110260.0,0.0002]
[1756163331819,5.34782483,110270.0,110260.0,0.0002]
[1756163332024,5.37771269,110270.0,110260.0,0.0002]
[1756163332240,5.39516171,110270.0,110260.0,0.0002]
[1756163332676,5.15794072,110270.0,110260.0,0.0002]
[1756163332887,5.32511938,110270.0,110260.0,0.0002]
[1756163333497,5.76681938,110270.0,110260.0,0.0002]
[1756163333719,5.76681415,110270.0,110260.0,0.0002]
[1756163335143,5.79410615,110270.0,110260.0,0.0002]
[1756163336020,5.80830198,110270.0,110260.0,0.0002]
[1756163336221,5.64942198,110270.0,110260.0,0.0002]
[1756163336423,5.80854198,110270.0,110260.0,0.0002]
[1756163336628,5.77865412,110270.0,110260.0,0.0002]
[1756163338055,5.77873412,110270.0,110260.0,0.0002]
[1756163338769,5.80862198,110270.0,110260.0,0.0002]
[1756163339003,5.84282066,110270.0,110260.0,0.0002]
[1756163339443,5.84282066,110270.0,110260.0,1e-08]
[1756163339620,0.52142235,110240.0,110230.0,0.0034]
[1756163339827,5.08074709,110240.0,110230.0,0.0023]
[1756163340027,5.11063495,110240.0,110230.0,0.0002]
[1756163340305,5.15212619,110240.0,110230.0,0.0055]
[1756163340514,5.12011833,110240.0,110230.0,0.0055]
[1756163341134,5.12223833,110240.0,110230.0,0.0002]
[1756163341377,5.33826032,110240.0,110230.0,1e-08]
[1756163341596,0.55132665,110230.0,110220.0,0.0002]
[1756163341798,5.30767417,110230.0,110220.0,0.0002]
[1756163342010,5.32773903,110230.0,110220.0,0.0023]
[1756163342383,5.33088903,110230.0,110220.0,0.0002]
[1756163342718,5.35032441,110230.0,110220.0,0.0002]
[1756163342913,5.32043656,110230.0,110220.0,0.0002]
[1756163343233,5.29466986,110230.0,110220.0,0.0002]
[1756163343415,5.35031228,110230.0,110220.0,0.0002]
[1756163343612,0.52145527,110220.0,110210.0,1.93048173]
[1756163343863,5.24817897,110220.0,110210.0,1.93048173]
[1756163344613,5.24502897,110220.0,110210.0,1.93258173]
[1756163344819,5.27232897,110220.0,110210.0,1.93458173]
[1756163345472,5.06628281,110220.0,110210.0,1.93778173]
[1756163345763,5.22848281,110220.0,110210.0,1.93458173]
[1756163346540,5.06840281,110220.0,110210.0,1.93778173]
[1756163346743,5.22640281,110220.0,110210.0,1.93778173]
[1756163346948,5.22644281,110220.0,110210.0,1.93778173]
[1756163347352,5.31858246,110220.0,110210.0,1.93248173]
[1756163349459,5.31543246,110220.0,110210.0,1.93248173]
[1756163349662,5.31543246,110220.0,110210.0,1.93458173]
[1756163349921,5.31543246,110220.0,110210.0,1.93248173]
[1756163350342,5.31543246,110220.0,110210.0,1.93458173]
[1756163350557,5.31858246,110220.0,110210.0,1.93248173]
[1756163350724,5.31543246,110220.0,110210.0,1.93458173]
[1756163351297,5.31538963,110220.0,110210.0,1.93458173]
[1756163351897,5.31522963,110220.0,110210.0,1.93458173]
[1756163352097,5.29838892,110220.0,110210.0,1.93458173]
[1756163352305,5.31522781,110220.0,110210.0,1.93458173]
[1756163352506,5.31522781,110220.0,110210.0,1.93248173]
[1756163352771,5.30417681,110220.0,110210.0,1.93248173]
[1756163353214,5.30102681,110220.0,110210.0,1.93458173]
[1756163353678,5.30417681,110220.0,110210.0,1.93248173]
[1756163353883,5.30421681,110220.0,110210.0,1.93248173]
[1756163354459,5.30421424,110220.0,110210.0,1.93248173]
[1756163355102,5.30106424,110220.0,110210.0,1.93458173]
[1756163355976,5.31526542,110220.0,110210.0,1.93248173]
[1756163356184,5.31841542,110220.0,110210.0,1.93248173]
[1756163357921,5.27244084,110220.0,110210.0,1.93458173]
[1756163358043,5.02553119,110220.0,110210.0,1.93458173]
[1756163358245,5.18561119,110220.0,110210.0,1.93778173]
[1756163358456,5.18876119,110220.0,110210.0,1.93248173]
[1756163358661,5.3055187,110220.0,110210.0,1.93248173]
[1756163358862,5.18876119,110220.0,110210.0,1.93248173]
[1756163359362,5.02868119,110220.0,110210.0,1.93248173]
[1756163359597,5.18876119,110220.0,110210.0,1.93248173]
[1756163360002,5.02553119,110220.0,110210.0,1.93458173]
[1756163360235,5.18553119,110220.0,110210.0,1.93458173]
[1756163360697,5.27555084,110220.0,110210.0,1.93248173]
[1756163360868,5.27557106,110220.0,110210.0,1.93248173]
[1756163361843,5.11242106,110220.0,110210.0,1.93458173]
[1756163362092,5.02343141,110220.0,110210.0,1.93778173]
[1756163362563,5.18331141,110220.0,110210.0,1.93778173]
[1756163362782,5.18543141,110220.0,110210.0,1.93778173]
[1756163363426,5.02343141,110220.0,110210.0,1.93778173]
[1756163363873,4.71205481,110220.0,110210.0,2.20612311]
[1756163364098,4.68475481,110220.0,110210.0,1.93778173]
[1756163364313,5.02475481,110220.0,110210.0,1.93778173]
[1756163364941,5.02475481,110220.0,110210.0,2.11725346]
[1756163365160,5.02475481,110220.0,110210.0,2.12025346]
[1756163365391,5.02475481,110220.0,110210.0,2.11725346]
[1756163365879,5.02475481,110220.0,110210.0,1.93578173]
[1756163366057,5.11162446,110220.0,110210.0,1.93578173]
[1756163366279,5.11162446,110220.0,110210.0,2.09582173]
[1756163366749,5.11162446,110220.0,110210.0,1.93578173]
[1756163366982,5.11162446,110220.0,110210.0,1.94078173]
[1756163367209,5.30736232,110220.0,110210.0,1.93548173]
[1756163367677,5.31370369,110220.0,110210.0,1.93248173]
[1756163367884,5.31370369,110220.0,110210.0,1.93048173]
[1756163367885,5.34738603,110220.0,110210.0,1.93048173]
[1756163368137,5.34738603,110220.0,110210.0,1.93148173]
[1756163368345,5.34738603,110220.0,110210.0,1.93048173]
[1756163368791,5.26051638,110220.0,110210.0,1.93048173]
[1756163369267,5.25738638,110220.0,110210.0,1.93048173]
[1756163369679,5.25738638,110220.0,110210.0,1.93262173]
[1756163369905,5.22541852,110220.0,110210.0,1.93583173]
[1756163370129,5.22565852,110220.0,110210.0,1.93583173]
[1756163370350,5.04158061,110220.0,110210.0,1.93583173]
[1756163370590,5.30822261,110220.0,110210.0,1.93048173]
[1756163370818,5.34445963,110220.0,110210.0,1.93048173]
[1756163371028,5.34758963,110220.0,110210.0,1.93048173]
[1756163372844,5.34445963,110220.0,110210.0,1.93048173]
[1756163373075,5.25758998,110220.0,110210.0,1.93262173]
[1756163373310,5.278169,110220.0,110210.0,1.93048173]
[1756163373521,5.30152157,110220.0,110210.0,1.48132508]
[1756163373754,5.38839122,110220.0,110210.0,1.14986139]
[1756163374035,5.38839122,110220.0,110210.0,1.10717694]
[1756163374227,5.39685816,110220.0,110210.0,1.10717694]
[1756163374448,5.38265756,110220.0,110210.0,1.10717694]
[1756163374577,5.38365756,110220.0,110210.0,0.67705027]
[1756163374786,5.38465756,110220.0,110210.0,0.51720661]
[1756163375183,5.36130499,110220.0,110210.0,0.51720661]
[1756163375377,5.36102499,110220.0,110210.0,0.51720661]
[1756163375630,5.38832899,110220.0,110210.0,0.51720661]
[1756163376817,5.40253115,110220.0,110210.0,0.51720661]
[1756163377024,5.40241115,110220.0,110210.0,0.51720661]
[1756163378223,5.24205115,110220.0,110210.0,0.51720661]
[1756163378470,5.1136967,110220.0,110210.0,0.51934661]
[1756163378686,5.25473496,110220.0,110210.0,0.51934661]
[1756163378931,5.09421496,110220.0,110210.0,0.51934661]
[1756163379147,5.61975869,110220.0,110210.0,0.07706039]
[1756163379420,5.70662834,110220.0,110210.0,0.07706039]
[1756163379641,5.86710834,110220.0,110210.0,0.07706039]
[1756163379907,5.84423234,110220.0,110210.0,0.07706039]
[1756163380125,0.53892075,110210.0,110200.0,0.005]
[1756163380344,0.52152114,110180.0,110170.0,8e-05]
[1756163380565,5.18540852,110180.0,110170.0,0.0005576]
[1756163380781,5.27435817,110180.0,110170.0,0.0005576]
[1756163381224,5.31587231,110180.0,110170.0,0.0026976]